Cogmind - Beta 14 @@@ ROGUE MODE // 2024.08.13 @ 17:07:04 Player: Vinsi Result: Destroyed by G-47 Trooper with Particle Gun Performance ------------- Evolutions (2) 1000 Regions Visited (4) 800 Robots Destroyed (17) 85 Value Destroyed (480) 480 Prototype IDs (1) 20 Alien Tech Used (0) 0 Bonus (-10) -10 TOTAL SCORE: 2375 Bonus ------- Friendly Fire -10 Cogmind --------- Core Integrity 0/550 Matter 155/300 Energy 100/100 System Corruption 0% Temperature Cool (9) Movement Core (700) Ox13 Location -8/Materials Parts ------- > --- POWER (1) -------- (None) > --- PROPULSION (3) --- (None) > --- UTILITY (4) ------ High-capacity Storage Unit > --- WEAPON (3) ------- (None) > --- INVENTORY (20) --- (None) Peak State ------------ > --- POWER ------------ Ion Engine > --- PROPULSION ------- Compact Wheel Compact Wheel > --- UTILITY ---------- Subdweller Optics Experimental Sensor Array Scrap Shield > --- WEAPON ----------- Beamcaster Subdweller Machine Gun Battle Cannon > --- INVENTORY -------- Light Ion Engine High-capacity Storage Unit [Rating: 27] Favorites ----------- Power Ion Engine Engine Ion Engine Propulsion Compact Wheel Treads Light Treads Leg Carbon-fiber Leg Wheel Compact Wheel Utility Scrap Shield Device Experimental Sensor Array Storage Small Storage Unit Processor Visual Processing Unit Protection Scrap Shield Weapon Battle Cannon Energy Gun Beamcaster Energy Cannon Beam Cannon Ballistic Gun Light Assault Rifle Ballistic Cannon Battle Cannon Launcher Rocket Launcher Special Weapon Mining Laser Special Melee Weapon Datajack Build | -11 -10 -10 -10 -8 ------- Run | Yrd Mat Min Sub Mat Slots Evolved 4 | . . . . 4 Power . | . . . . . Propulsion 1 | . . . . 1 Utility 2 | . . . . 2 Weapon 1 | . . . . 1 Parts Attached 40 | 6 12 6 8 8 Power 4 | 1 1 . . 2 Engine 4 | 1 1 . . 2 Core . | . . . . . Reactor . | . . . . . Propulsion 12 | 2 3 2 5 . Treads 2 | . 2 . . . Leg 2 | . . . 2 . Wheel 8 | 2 1 2 3 . Hover . | . . . . . Flight . | . . . . . Utility 8 | 1 3 . 1 3 Device 2 | . . . . 2 Storage 2 | 1 . . . 1 Processor 3 | . 3 . . . Hackware . | . . . . . Protection 1 | . . . 1 . Artifact . | . . . . . Weapon 16 | 2 5 4 2 3 Energy Gun 8 | 2 3 . 1 2 Energy Cannon 1 | . 1 . . . Ballistic Gun 3 | . . 2 . 1 Ballistic Cannon 1 | . . . 1 . Launcher 1 | . . 1 . . Special Weapon 1 | . . 1 . . Impact Weapon . | . . . . . Slashing Weapon . | . . . . . Piercing Weapon . | . . . . . Special Melee Weapon 1 | . 1 . . . Unidentified Prototypes 1 | . . . . 1 Parts Lost 14 | . 2 1 . 11 Power 3 | . 1 . . 2 Propulsion 2 | . . . . 2 Utility 3 | . . . . 3 Weapon 6 | . 1 1 . 4 Highest Loss Streak 11 | . 1 1 . 11 To Critical Strikes . | . . . . . Average Slot Usage (%) 86 | . 86 99 85 69 Engine 12 | . 9 14 14 7 Treads 2 | . 2 9 . . Wheel 22 | . 21 18 28 14 Device 2 | . . . . 16 Processor 10 | . 20 28 1 . Protection 6 | . . . 12 6 Energy Gun 6 | . 20 . 4 7 Energy Cannon 2 | . 3 6 . . Ballistic Gun 7 | . . 9 9 7 Ballistic Cannon 6 | . . . 12 7 Launcher 2 | . . 7 1 . Peak Build Rating 27 | 6 8 10 19 27 Average Rating 11 | 4 6 8 11 23 On Entrance 7 | . 6 8 10 15 Naked Turns . | . . . . . Heaviest Build 53 | 13 13 10 31 53 Greatest Support 40 | 32 40 40 32 32 Greatest Overweight (x) 17 | . . . . 17 Average Overweight (x) . | . . . . 2 Largest Inventory Capacity 20 | 8 8 5 5 20 Average Capacity 5 | 6 5 5 5 7 Most Carried 7 | 4 7 5 5 5 Average Carried 3 | 2 3 4 3 2 Final Capacity 20 | 8 5 5 5 20 Final Carried 5 | 4 5 5 5 . Class Distribution -------------------- 59% | Scavenger-Mutant 28% | Mutant 10% | Subdweller-Skirmisher Dominant Class ---------------- Mutant | -10/Materials Scavenger-Mutant | -10/Mines Scavenger-Mutant | -10/Subcaves Subdweller-Skirmisher | -8/Materials Resources | -11 -10 -10 -10 -8 ----------- Run | Yrd Mat Min Sub Mat Matter Collected 768 | 208 152 109 260 39 Remotely . | . . . . . Salvage Created 507 | . 152 154 154 47 Parts 38 | . 15 11 9 3 Haulers Intercepted . | . . . . . Recyclers Shooed 3 | . . 3 . . Parts Field Recycled . | . . . . . Retrieved Matter . | . . . . . Parts Self-Destructed 15 | . . . 15 . Prevented . | . . . . . Kills | -11 -10 -10 -10 -8 ------- Run | Yrd Mat Min Sub Mat Combat Hostiles Destroyed 14 | . 3 5 4 2 Guns 2 | . 1 . 1 . Cannons 9 | . 1 5 1 2 AOE 2 | . . . 2 . Classes Destroyed 7 | . 2 2 1 2 Recycler 1 | . . 1 . . Watcher 2 | . 2 . . . Swarmer 5 | . . 5 . . Grunt 4 | . 3 . 1 . Sentry 1 | . . . . 1 Hunter 1 | . . . . 1 Subdweller 3 | . . . 3 . Best Kill Streak 4 | . 3 4 2 1 Combat Bots Only 3 | . 2 3 2 1 Max Kills in Single Turn 1 | . 1 1 1 1 Gunslinging . | . . . . . Exploded 1 | . . . 1 . Melee . | . . . . . Uniques/NPCs Destroyed . | . . . . . Combat | -11 -10 -10 -10 -8 -------- Run | Yrd Mat Min Sub Mat Hostile Shots Fired 190 | . 40 40 19 91 Missed 47 | . 15 10 7 15 Damage Taken 2086 | . 346 276 283 1181 Core 758 | . 131 33 40 554 Absorbed by Shields . | . . . . . Core Remaining (%) 59 | 100 . . 18 . Volleys Fired 125 | . 41 37 23 24 Largest 3 | . 2 1 2 3 Hottest 144 | . 100 60 114 144 Shots Fired 206 | . 68 37 45 56 Gun 126 | . 66 . 23 37 Cannon 66 | . 2 27 18 19 Launcher 14 | . . 10 4 . Special . | . . . . . Kinetic 65 | . . . 30 35 Thermal 122 | . 68 27 11 16 Explosive 14 | . . 10 4 . Electromagnetic 5 | . . . . 5 Robot Hit Streak 8 | . 8 3 5 4 Robot Miss Streak 17 | . 17 3 2 3 Penetration Max . | . . . . . Secondary Targets . | . . . . . Shots Hit Robots 84 | . 25 12 14 33 Core Hits 31 | . 8 7 10 6 Critical Kills . | . . . . . Critical Parts Destroyed . | . . . . . Critical Strikes 5 | . 4 . 1 . Burn 5 | . 4 . 1 . Melee Attacks . | . . . . . Impact . | . . . . . Slashing . | . . . . . Piercing . | . . . . . Sneak Attacks . | . . . . . Combat Hostiles . | . . . . . Follow-up Attacks . | . . . . . Damage Inflicted 1718 | . 331 259 521 607 Guns 767 | . 314 . 91 362 Cannons 569 | . 17 248 59 245 Explosions 382 | . . 11 371 . Melee . | . . . . . Ramming . | . . . . . Kinetic 512 | . . . 89 423 Thermal 790 | . 331 248 61 150 Explosive 382 | . . 11 371 . Electromagnetic 34 | . . . . 34 Impact . | . . . . . Slashing . | . . . . . Piercing . | . . . . . Highest Corruption . | . . . . . Average Corruption . | . . . . . Corruption Purged . | . . . . . Corruption Blocked . | . . . . . Overload Shots . | . . . . . Overflow Damage 1 | . . . . 1 Projectiles 1 | . . . . 1 Explosions . | . . . . . Melee . | . . . . . Knockbacks 4 | . . . . 4 Impact . | . . . . . Kinetic 3 | . . . . 3 Secondary 1 | . . . . 1 Self-Inflicted Damage 37 | . . 37 . . Shots 2 | . . 2 . . Rammed . | . . . . . Targets Rammed . | . . . . . Kicked . | . . . . . Crushed . | . . . . . Highest Temperature 435 | . 279 222 9 435 Average Temperature 131 | . 87 94 4 231 Received Heat Transfer 903 | . 228 . 81 594 Effects 13 | . 3 2 . 8 Shutdowns 1 | . . . . 1 Energy Bleed 3 | . . . . 3 Interference 6 | . 3 2 . 1 Short Circuit 2 | . . . . 2 Damage (minor) 1 | . . . . 1 Siege Activations . | . . . . . Robots Corrupted . | . . . . . Combat Hostiles . | . . . . . Parts Fried . | . . . . . Impact Corruptions . | . . . . . Robots Melted 1 | . 1 . . . Combat Hostiles 1 | . 1 . . . Parts Melted 4 | . 2 . 2 . Heat Transferred 2220 | . 1258 518 185 259 Parts Sabotaged . | . . . . . Parts Stolen . | . . . . . Parts Stripped . | . . . . . Power Chain Reactions . | . . . . . Alert | -11 -10 -10 -10 -8 ------- Run | Yrd Mat Min Sub Mat Peak Influence 132 | . 125 132 . 81 Initial 17 | . . 17 . . Average 40 | . 32 54 . 30 Maximum Alert Level . | . . . . . Low Security (%) 100 | 100 100 100 . 100 Level 1 . | . . . . . Level 2 . | . . . . . Level 3 . | . . . . . Level 4 . | . . . . . Level 5 . | . . . . . High Security . | . . . . . Max Security . | . . . . . Squads Dispatched 5 | . 3 . . 2 Investigation 2 | . 2 . . . Extermination . | . . . . . Reinforcement 3 | . 1 . . 2 Assault . | . . . . . Garrison . | . . . . . Intercept . | . . . . . Searches Triggered . | . . . . . Construction Impeded . | . . . . . Haulers Reinforced . | . . . . . Active Scanning Responses . | . . . . . Cargo Convoy Interrupts . | . . . . . Stealth | -11 -10 -10 -10 -8 --------- Run | Yrd Mat Min Sub Mat Distress Signals 1 | . 1 . . . Communications Jammed . | . . . . . Distress Signals . | . . . . . Times Spotted 41 | . 14 6 15 6 Peak Tracking Total 4 | . 4 3 4 3 Tactical Retreats 4 | . 4 . . . Traps | -11 -10 -10 -10 -8 ------- Run | Yrd Mat Min Sub Mat Traps Triggered 4 | . 3 . 1 . Indirectly . | . . . . . Trap Hack Attempts . | . . . . . Triggered . | . . . . . Disarmed . | . . . . . Reprogrammed . | . . . . . Reused . | . . . . . Traps Extracted . | . . . . . Installed . | . . . . . Triggered . | . . . . . Machines | -11 -10 -10 -10 -8 ---------- Run | Yrd Mat Min Sub Mat Machines Disabled 1 | . . 1 . . Max in Single Turn 1 | . . 1 . . Machines Repaired . | . . . . . Machines Dismantled . | . . . . . Machines Sabotaged . | . . . . . Overloaded Fab Kills . | . . . . . Hacking | -11 -10 -10 -10 -8 --------- Run | Yrd Mat Min Sub Mat Machines Accessed 3 | . 3 . . . Terminals 3 | . 3 . . . Fabricators . | . . . . . Repair Stations . | . . . . . Recycling Units . | . . . . . Scanalyzers . | . . . . . Garrison Access . | . . . . . Total Hacks 7 | . 7 . . . Successful 4 | . 4 . . . Failed 3 | . 3 . . . Catastrophic . | . . . . . Database Lockouts . | . . . . . Manual . | . . . . . Terminals 7 | . 7 . . . Fabricators . | . . . . . Repair Stations . | . . . . . Recycling Units . | . . . . . Scanalyzers . | . . . . . Garrison Access . | . . . . . Terminal Hacks 4 | . 4 . . . Alert Level 1 | . 1 . . . Unreport Threat 1 | . 1 . . . Zone Layout 2 | . 2 . . . Fabricator Hacks . | . . . . . Repair Station Hacks . | . . . . . Recycling Unit Hacks . | . . . . . Scanalyzer . | . . . . . Garrison Access Hacks . | . . . . . Unauthorized Hacks . | . . . . . Terminals . | . . . . . Fabricators . | . . . . . Repair Stations . | . . . . . Recycling Units . | . . . . . Scanalyzers . | . . . . . Garrison Access . | . . . . . Data Cores Recovered . | . . . . . Used . | . . . . . Hacking Detections 2 | . 2 . . . Full Trace Events 2 | . 2 . . . Feedback Events . | . . . . . Feedback Blocked . | . . . . . Robot Schematics Acquired . | . . . . . Robots Built . | . . . . . Authchips . | . . . . . Time . | . . . . . Total Robot Build Rating . | . . . . . Part Schematics Acquired . | . . . . . Parts Built . | . . . . . Authchips . | . . . . . Time . | . . . . . Total Part Build Rating . | . . . . . Parts Repaired . | . . . . . Time . | . . . . . Parts Recycled . | . . . . . Recycled Matter . | . . . . . Retrieved Matter . | . . . . . Retrieved Components . | . . . . . Parts Scanalyzed . | . . . . . Part Schematics Acquired . | . . . . . Parts Damaged . | . . . . . Bothacking | -11 -10 -10 -10 -8 ------------ Run | Yrd Mat Min Sub Mat Used RIF Installer . | . . . . . Robots Hacked . | . . . . . Non-combat . | . . . . . Combat . | . . . . . Robot Hacks Applied . | . . . . . Relay Couplers Released . | . . . . . Fabnet Peak Effective % . | . . . . . Robots Rewired . | . . . . . Allies Hacked . | . . . . . Hacks Repelled . | . . . . . Allies | -11 -10 -10 -10 -8 -------- Run | Yrd Mat Min Sub Mat Total Allies . | . . . . . Largest Group . | . . . . . Highest-Rated Group . | . . . . . Highest-Rated Ally . | . . . . . Total Orders . | . . . . . Ally Attacks . | . . . . . Total Damage . | . . . . . Kills . | . . . . . Allies Corrupted . | . . . . . Allies Melted . | . . . . . Intel | -11 -10 -10 -10 -8 ------- Run | Yrd Mat Min Sub Mat Robot Analysis Total . | . . . . . Derelict Logs Recovered 4 | . . 2 2 . Drone Launches . | . . . . . Drone Recoveries . | . . . . . Exploration | -11 -10 -10 -10 -8 ------------- Run | Yrd Mat Min Sub Mat Turns Passed 3374 | 74 514 813 1453 520 Spaces Moved 2350 | 56 282 622 1283 107 Core 22 | 6 . . . 16 Treads 154 | . 32 122 . . Legs . | . . . . . Wheels 2174 | 50 250 500 1283 91 Hover . | . . . . . Flight . | . . . . . Fastest Speed 50 | 50 100 100 100 100 Average Speed 107 | 94 106 111 100 180 Slowest Speed 900 | 100 160 160 100 900 Overloaded Moves . | . . . . . Propulsion Burnouts . | . . . . . Robots Hopped . | . . . . . Cave-ins Triggered . | . . . . . Exploration Rate (%) 44 | 3 48 98 66 6 Regions Visited 4 Branch Regions 2 Pre-discovered Areas 1 | . . 1 . . Known Exits Taken 2 | . 1 1 . . Unknown Exits Taken 2 | 1 . . 1 . Scrap Searched 1 | . . 1 . . Spaces Dug 98 | . . 96 2 . Terrain Destroyed 131 | . . 108 21 2 Melee . | . . . . . Projectile 5 | . . . 3 2 AOE 126 | . . 108 18 . Terrain Rammed . | . . . . . Walls Destroyed . | . . . . . Machines Disabled . | . . . . . Actions | -11 -10 -10 -10 -8 --------- Run | Yrd Mat Min Sub Mat Total 3009 | 77 428 702 1409 393 Wait 436 | 6 74 28 75 253 Move 2346 | 55 281 621 1282 107 Hop . | . . . . . Pick Up 39 | 10 14 4 10 1 Fast Attach 4 | . 1 3 . . Attach 21 | 6 8 . 1 6 Detach 1 | . . . 1 . Swap 15 | . 3 3 7 2 Drop 22 | . 6 6 10 . Fire 125 | . 41 37 23 24 Melee . | . . . . . Ram . | . . . . . Kick . | . . . . . Crush . | . . . . . Escape Stasis . | . . . . . Rewire . | . . . . . Trap . | . . . . . Miscellaneous . | . . . . . Route ------- -11/Scrapyard -10/Materials (discovered 2 exits: *Mat / *Min) -10/Mines (discovered 3 exits: *Mat x2 / *Sub) -10/Subcaves (discovered 2 exits: [*Mat x2]) -8/Materials (discovered 1 exit: Fac) History --------- Turn | Location | Event 22 | -11/Scrapyard | Discovered new exit (range 16) 75 | -11/Scrapyard | Entered Materials 230 | -10/Materials | Discovered new exit (range 9) 312 | -10/Materials | Build established: Mutant 318 | -10/Materials | Discovered new exit (range 11) 332 | -10/Materials | Identified exit to Materials 587 | -10/Materials | Identified exit to Mines 589 | -10/Materials | Entered Mines 590 | -10/Mines | Core integrity fell below 50% 604 | -10/Mines | Met a Derelict bent on vengeance 704 | -10/Mines | Discovered exit to Materials (range 10) 795 | -10/Mines | Learned location of Zion (-6) 980 | -10/Mines | Received a Rocket Launcher from a helpful Derelict 1043 | -10/Mines | Found a damaged Exp. Sensor Array with a note attached 1046 | -10/Mines | Found Prototype Device 1142 | -10/Mines | Build established: Scavenger-Mutant 1237 | -10/Mines | Discovered exit to Materials (range 9) 1391 | -10/Mines | Discovered new exit (range 14) 1401 | -10/Mines | Identified exit to Subcaves 1402 | -10/Mines | Entered Subcaves 1491 | -10/Subcaves | Core integrity fell below 20% 1492 | -10/Subcaves | Ambushed by swarm of Subdwellers 1504 | -10/Subcaves | Ambushed by Subdwellers from Twisted Machinery 1817 | -10/Subcaves | Ambushed by Subdwellers from Twisted Machinery 1889 | -10/Subcaves | Curiously followed by a Cobbler waking with a query about "LVR3C" 2445 | -10/Subcaves | Lost 3 allies 2451 | -10/Subcaves | Discovered new exit (range 12) 2594 | -10/Subcaves | Learned location of 1 exit from Materials 2812 | -10/Subcaves | Discovered new exit (range 10) 2827 | -10/Subcaves | Shifting Twisted Machinery released Sub. Machine Gun 2855 | -10/Subcaves | Entered Materials 2855 | -8/Materials | Evolved 4 slots: Propulsion x1, Utility x2, Weapon x1 2856 | -8/Materials | Identified exit to Factory 2859 | -8/Materials | Identified Exp. Sensor Array 3166 | -8/Materials | Build established: Subdweller-Skirmisher 3325 | -8/Materials | Core integrity fell below 50% 3359 | -8/Materials | Core integrity fell below 20% 3371 | -8/Materials | Lost 11 parts (2p2n3u4w) 3375 | -8/Materials | Destroyed by G-47 Trooper with Particle Gun Last Messages --------------- Overheating: System interference. Sub. Machine Gun temporarily disabled. Lgt. Ion Engine destroyed. Acquired 5 matter. Overheating: Battle Cannon damaged (-51). Com. Wheel broken. Overheating: Short circuit. Battle Cannon broken. Overheating: Short circuit. Broken Battle Cannon destroyed. Critical hit (Burn: +37). Sub. Machine Gun destroyed. Critical hit (Burn: +37). Beamcaster destroyed. Broken Com. Wheel destroyed. Ion Engine destroyed. Broken Sub. Optics destroyed. Exp. Sensor Array destroyed. R-06 Scavenger collects Welding Torch. R-06 Scavenger collects Lgt. Ion Engine. Map ----- +----------------------------------------------------+ | ?????????????????????????????????????????????????? | | ?????????????????????????????????????????????????? | | ?????????????????????????????????????????????????? | | ?????????????????????????????????????????????????? | | ?????????????????????????????????????????????????? | | ?????????????????????????????????????????????????? | | ?????????????????????????????????????????????????? | | ?????????????????????????????????????????????????? | | ?????????????????????????????????????????????????? | | ?????????????????????????????????????????????????? | | ?????????????????????????????????????????????????? | | ?????????????????????????????????????????????????? | | ?????????????????????????????????????????????????? | | ?????????????????????????????????????????????????? | | ???????????????????###########???????????????????? | | ???????????????????# #???????????????????? | | ???????????????????# #???????????????????? | | ???????????????????# """ #?????????????????#?? | | ???????????????????#""""" #???????????????? +?? | | ???????????????????#""""" #???????????????? #?? | | ???????????????????#""""" #??????????????? ##? | | ???????????????????# """ #???????????????= ## | | ???????????????????# #??????????###?!% % | | ????????????##############+################# % | | ????????????# !% gg % #? | | ????????????# r @ ###############/###? | | ?????######## #??????????????????? | | ?????# + ###############??????????????????? | | ?????# # #????????????????????????????????? | | ?????# # #????????????????????????????????? | | ?????# # #????????????????????????????????? | | ?????# #####????????????????????????????????? | | ?????# #????????????????????????????????????? | | ?????########????????????????????????????????????? | | ?????????????????????????????????????????????????? | | ?????????????????????????????????????????????????? | | ?????????????????????????????????????????????????? | | ?????????????????????????????????????????????????? | | | | | | | | | | | | | | | | | | | | | | | | | +----------------------------------------------------+ Best States ------------- Heat Dissipation 31 Energy Generation 10 Energy Capacity 250 Matter Stores 300 Matter Capacity 300 Sight Range 21 Robot Scan Range 20 Terrain Scan Density 10 Armor Coverage 800 Evasion (%) 50 Recoil Reduction 2 Item Schematics ----------------- None Robot Schematics ------------------ None Fabricated ------------ Nothing Alien Tech Used ----------------- None Achievements -------------- None Challenges ------------ None Game ------ Seed HugeCompositeInitializer Manual? 0 Play Time 00:33:30 Cumulative 4.5 hours Start 2024.08.13 @ 16:29:37 End 2024.08.13 @ 17:07:04 Sessions 1 Manual Loads 0 Difficulty Rogue Special Mode None Game No. 12 Rogue 12 Adventurer 0 Explorer 0 Win Type - Total 0 Types 0/0/0/0/0/0/0/0/0 Lore% 3 Gallery% 11 Achievement% 10 Wizard Run 0 Options --------- Layout 1 ASCII 0 Keyboard 0 Movement Mouse Keybinds 0 Fullscreen 2 Font 32/SmallcapsGlow Map View 50x40 Zoom Use 0% Tactical HUD 0 Map Filters NONE Filters NONE Steam 1 RUN: 4e1d0f59-d554-497d-a996-3a46109cbd81